Cogmind - Beta 13 @@@ ROGUE MODE // 2024.07.29 @ 21:53:19 Player: OctagonalPrism Result: Destroyed by Y-54 Guardian with Flak Gun Performance ------------- Evolutions (4) 2000 Regions Visited (5) 1000 Robots Destroyed (71) 355 Value Destroyed (2291) 2291 Prototype IDs (5) 100 Alien Tech Used (0) 0 Bonus (0) 0 TOTAL SCORE: 5746 Bonus ------- None Cogmind --------- Core Integrity 0/850 Matter 290/300 Energy 225/225 System Corruption 3% Temperature Cool (-94) Movement Rolling (80) Location -6/Factory Parts ------- > --- POWER (2) -------- Light Ion Engine > --- PROPULSION (3) --- Medium Treads Wheel Wheel > --- UTILITY (8) ------ Cryofiber Web Medium Storage Unit Small Battery Advanced Signal Interpreter Terrain Scanner Terrain Scan Processor Core Analyzer Hacking Suite > --- WEAPON (2) ------- Great Axe > --- INVENTORY (10) --- Small Matter Pod (50) Lightning Gun Mini Grenade Launcher Peak State ------------ > --- POWER ------------ Light Angular Momentum Engine Light Angular Momentum Engine > --- PROPULSION ------- Light Treads Medium Treads Medium Treads > --- UTILITY ---------- Cryofiber Web Medium Storage Unit Improved Signal Interpreter Improved Terrain Scanner Advanced Terrain Scan Processor Improved Targeting Computer Core Analyzer System Restoration Module > --- WEAPON ----------- Heavy Ion Cannon Minigun > --- INVENTORY -------- Light Deuterium Engine Small Battery Small Matter Pod Hacking Suite Hacking Suite Mini Grenade Launcher Great Axe [Rating: 51] Favorites ----------- Power Light Nuclear Core Engine Improved Deuterium Engine Power Core Light Nuclear Core Propulsion Compact Wheel Treads Medium Treads Leg Armored Leg Wheel Compact Wheel Utility Medium Storage Unit Device Sensor Array Storage Medium Storage Unit Processor Improved Signal Interpreter Hackware Hacking Suite Protection Hardened Medium Armor Plating Weapon Assault Cannon Energy Gun Heavy Laser Energy Cannon Heavy Ion Cannon Ballistic Gun Minigun Ballistic Cannon Assault Cannon Slashing Weapon Great Axe Build | -11 -10 -9 -8 -7 -6 ------- Run | Yrd Mat Mat Mat Fac Fac Slots Evolved 8 | . . 2 2 2 2 Power 1 | . . . . 1 . Propulsion 1 | . . . . 1 . Utility 6 | . . 2 2 . 2 Weapon . | . . . . . . Parts Attached 97 | 6 7 18 20 23 23 Power 17 | 1 1 1 4 4 6 Engine 13 | 1 1 1 2 2 6 Core 4 | . . . 2 2 . Reactor . | . . . . . . Propulsion 19 | 2 3 2 3 5 4 Treads 6 | . . . 1 4 1 Leg 1 | . . . . . 1 Wheel 12 | 2 3 2 2 1 2 Hover . | . . . . . . Flight . | . . . . . . Utility 32 | 1 2 4 7 9 9 Device 12 | . . 1 2 7 2 Storage 4 | 1 1 1 . . 1 Processor 8 | . 1 1 2 . 4 Hackware 2 | . . . . . 2 Protection 6 | . . 1 3 2 . Artifact . | . . . . . . Weapon 29 | 2 1 11 6 5 4 Energy Gun 9 | 1 . 2 3 1 2 Energy Cannon 6 | . . 4 . 2 . Ballistic Gun 9 | 1 1 4 1 2 . Ballistic Cannon 3 | . . 1 2 . . Launcher . | . . . . . . Special Weapon . | . . . . . . Impact Weapon . | . . . . . . Slashing Weapon 2 | . . . . . 2 Piercing Weapon . | . . . . . . Special Melee Weapon . | . . . . . . Unidentified Prototypes 3 | . . 2 1 . . Parts Lost 34 | . 2 3 7 6 16 Power 8 | . 1 . 1 1 5 Propulsion 6 | . . 1 1 1 3 Utility 8 | . . . 2 2 4 Weapon 12 | . 1 2 3 2 4 Highest Loss Streak 10 | . 1 3 7 4 10 To Critical Strikes . | . . . . . . Average Slot Usage (%) 92 | . 97 98 92 97 75 Engine 7 | . 13 11 6 7 6 Core 2 | . . . 2 6 . Treads 6 | . . . . 13 11 Wheel 12 | . 28 21 17 7 . Device 14 | . . 11 16 20 11 Storage 8 | . 14 10 9 7 6 Processor 16 | . 12 19 12 15 21 Protection 3 | . . 2 9 2 . Energy Gun 4 | . 8 . 8 4 1 Energy Cannon 3 | . . 10 1 3 3 Ballistic Gun 5 | . 19 10 1 2 3 Ballistic Cannon 2 | . . . 6 3 . Naked Turns . | . . . . . . Heaviest Build 42 | 13 17 29 37 40 42 Greatest Support 76 | 32 32 32 28 76 76 Greatest Overweight (x) 6 | . . 1 1 1 6 Average Overweight (x) . | . . . . . . Largest Inventory Capacity 10 | 8 10 10 10 10 10 Average Capacity 9 | 7 8 9 10 10 10 Most Carried 10 | 1 5 7 8 10 9 Average Carried 6 | . 2 4 5 9 5 Final Capacity 10 | 8 10 10 10 10 10 Final Carried 10 | 1 4 4 8 10 3 Class Distribution -------------------- 37% | Mutant 36% | Scavenger-Mutant 26% | Scavenger-Skirmisher Dominant Class ---------------- Mutant | -10/Materials Mutant | -9/Materials Scavenger-Mutant | -8/Materials Scavenger-Skirmisher | -7/Factory Scavenger-Mutant | -6/Factory Resources | -11 -10 -9 -8 -7 -6 ----------- Run | Yrd Mat Mat Mat Fac Fac Matter Collected 1620 | 235 136 181 342 427 299 Remotely . | . . . . . . Salvage Created 2796 | . 308 557 602 544 785 Parts 150 | . 19 38 39 30 24 Haulers Intercepted 2 | . 1 . . . 1 Recyclers Shooed 2 | . 1 . . . 1 Parts Field Recycled . | . . . . . . Retrieved Matter . | . . . . . . Parts Self-Destructed . | . . . . . . Prevented . | . . . . . . Kills | -11 -10 -9 -8 -7 -6 ------- Run | Yrd Mat Mat Mat Fac Fac Combat Hostiles Destroyed 48 | . 7 11 10 10 10 Melee 1 | . . . . . 1 Guns 19 | . 6 3 5 2 3 Cannons 22 | . . 7 3 6 6 AOE 5 | . 1 1 1 2 . Classes Destroyed 13 | . 4 6 1 2 . Worker 5 | . . . . 2 3 Builder 3 | . . 1 . . 2 Hauler 2 | . 1 . . . 1 Recycler 1 | . . 1 . . . Operator 2 | . . 1 1 . . Watcher 10 | . 1 3 3 3 . Swarmer 9 | . 3 3 . 3 . Grunt 25 | . 4 5 7 3 6 Brawler 3 | . . 1 . . 2 Duelist 2 | . . 1 . 1 . Sentry 5 | . . 1 2 2 . Hunter 3 | . . . 1 . 2 Programmer 1 | . . . . 1 . Best Kill Streak 5 | . 5 5 2 4 4 Combat Bots Only 4 | . 4 4 2 4 4 Max Kills in Single Turn 2 | . 1 2 1 2 1 Gunslinging . | . . . . . . Exploded 2 | . 1 1 1 2 . Melee 1 | . . . . . 1 Uniques/NPCs Destroyed . | . . . . . . Combat | -11 -10 -9 -8 -7 -6 -------- Run | Yrd Mat Mat Mat Fac Fac Hostile Shots Fired 537 | . 49 66 87 135 200 Missed 169 | . 14 20 23 38 74 Damage Taken 5594 | . 379 659 1083 1285 2188 Core 1428 | . 153 122 130 173 850 Absorbed by Shields . | . . . . . . Redirected to Shielding 137 | . . . . 137 . Regen/Repaired (Parts) 77 | . . 77 . . . Core Remaining (%) 71 | 100 38 69 76 75 . Volleys Fired 194 | . 36 42 33 47 36 Largest 2 | . 2 2 2 2 2 Hottest 132 | . 60 112 132 120 110 Shots Fired 369 | . 68 81 60 93 67 Gun 222 | . 68 39 37 46 32 Cannon 147 | . . 42 23 47 35 Launcher . | . . . . . . Special . | . . . . . . Kinetic 185 | . 50 43 28 36 28 Thermal 117 | . . 15 20 47 35 Explosive . | . . . . . . Electromagnetic 67 | . 18 23 12 10 4 Robot Hit Streak 16 | . 13 7 13 16 15 Robot Miss Streak 4 | . 3 4 2 3 2 Penetration Max . | . . . . . . Secondary Targets 1 | . 1 . . . . Max Gunslinging Chain 1 | . 1 . . . . Shots Hit Robots 269 | . 51 47 46 58 67 Core Hits 124 | . 16 24 23 31 30 Critical Kills 2 | . 2 . . . . Critical Parts Destroyed 2 | . 1 1 . . . Critical Strikes 9 | . 3 1 1 2 2 Burn 2 | . . . 1 1 . Destroy 4 | . 3 1 . . . Blast 1 | . . . . 1 . Sever 2 | . . . . . 2 Melee Attacks 22 | . . . . . 22 Impact . | . . . . . . Slashing 22 | . . . . . 22 Piercing . | . . . . . . Sneak Attacks 7 | . . . . . 7 Combat Hostiles . | . . . . . . Follow-up Attacks . | . . . . . . Damage Inflicted 6105 | . 560 1003 983 1451 2108 Guns 2150 | . 500 340 460 508 342 Cannons 2568 | . . 540 430 840 758 Explosions 462 | . 60 123 93 103 83 Melee 925 | . . . . . 925 Ramming . | . . . . . . Kinetic 1943 | . 285 415 406 557 280 Thermal 2308 | . 60 245 360 802 841 Explosive . | . . . . . . Electromagnetic 929 | . 215 343 217 92 62 Impact . | . . . . . . Slashing 925 | . . . . . 925 Piercing . | . . . . . . Highest Corruption 6 | . . . . 2 6 Average Corruption 3 | . . . . 1 3 Corruption Purged 5 | . . . . 2 3 Corruption Blocked . | . . . . . . Effects 17 | . . . . 2 15 Message Errors 6 | . . . . 2 4 Matter Fused 2 | . . . . . 2 Heat Flow Errors 2 | . . . . . 2 Energy Discharges 1 | . . . . . 1 Data Loss (minor) 2 | . . . . . 2 Data Loss (major) 2 | . . . . . 2 Misfires 1 | . . . . . 1 Weapon Failures 1 | . . . . . 1 Overload Shots . | . . . . . . Overflow Damage 201 | . 6 18 . 27 150 Projectiles 62 | . . 18 . 17 27 Explosions 16 | . 6 . . 10 . Melee 123 | . . . . . 123 Knockbacks 10 | . . 3 3 4 . Impact . | . . . . . . Kinetic 10 | . . 3 3 4 . Secondary . | . . . . . . Self-Inflicted Damage 333 | . 37 . 39 59 198 Shots 6 | . 1 . 1 1 3 Rammed . | . . . . . . Targets Rammed . | . . . . . . Kicked . | . . . . . . Crushed . | . . . . . . Highest Temperature 236 | . 141 236 138 138 176 Average Temperature 41 | . 56 43 37 32 50 Received Heat Transfer 1497 | . 114 189 477 270 447 Siege Activations . | . . . . . . Robots Corrupted 1 | . . . 1 . . Combat Hostiles 1 | . . . 1 . . Parts Fried 6 | . 2 4 . . . Impact Corruptions . | . . . . . . Robots Melted . | . . . . . . Combat Hostiles . | . . . . . . Parts Melted 3 | . . . . 2 1 Heat Transferred 3645 | . 100 409 729 1321 1086 Parts Sabotaged . | . . . . . . Parts Stolen . | . . . . . . Parts Stripped . | . . . . . . Power Chain Reactions 4 | . 1 1 1 1 . Alert | -11 -10 -9 -8 -7 -6 ------- Run | Yrd Mat Mat Mat Fac Fac Peak Influence 277 | . 160 210 233 202 277 Initial 78 | . . . 78 25 44 Average 93 | . 59 103 133 75 100 Maximum Alert Level 1 | . . 1 1 1 1 Low Security (%) 89 | 100 100 85 75 98 83 Level 1 10 | . . 14 24 1 16 Level 2 . | . . . . . . Level 3 . | . . . . . . Level 4 . | . . . . . . Level 5 . | . . . . . . High Security . | . . . . . . Max Security . | . . . . . . Squads Dispatched 10 | . 1 1 2 5 1 Investigation 2 | . . . 1 1 . Extermination 2 | . . . . 1 1 Reinforcement 3 | . 1 1 1 . . Assault . | . . . . . . Garrison 3 | . . . . 3 . Intercept . | . . . . . . Searches Triggered . | . . . . . . Construction Impeded . | . . . . . . Haulers Reinforced . | . . . . . . Active Scanning Responses . | . . . . . . Cargo Convoy Interrupts . | . . . . . . Stealth | -11 -10 -9 -8 -7 -6 --------- Run | Yrd Mat Mat Mat Fac Fac Distress Signals 7 | . 1 . 4 2 . Communications Jammed . | . . . . . . Distress Signals . | . . . . . . Times Spotted 79 | . 8 19 15 18 19 Peak Tracking Total 5 | . 3 5 5 4 4 Tactical Retreats 5 | . . 1 2 . 2 Traps | -11 -10 -9 -8 -7 -6 ------- Run | Yrd Mat Mat Mat Fac Fac Traps Triggered 1 | . . . 1 . . Indirectly . | . . . . . . Trap Hack Attempts . | . . . . . . Triggered . | . . . . . . Disarmed . | . . . . . . Reprogrammed . | . . . . . . Reused . | . . . . . . Traps Extracted . | . . . . . . Installed . | . . . . . . Triggered . | . . . . . . Machines | -11 -10 -9 -8 -7 -6 ---------- Run | Yrd Mat Mat Mat Fac Fac Machines Disabled 5 | . . . . 2 3 Max in Single Turn 3 | . . . . 1 3 Machines Repaired . | . . . . . . Machines Dismantled . | . . . . . . Machines Sabotaged . | . . . . . . Overloaded Fab Kills . | . . . . . . Hacking | -11 -10 -9 -8 -7 -6 --------- Run | Yrd Mat Mat Mat Fac Fac Machines Accessed 18 | . 2 4 5 4 3 Terminals 9 | . 2 1 3 . 3 Fabricators 1 | . . . . 1 . Repair Stations 2 | . . 2 . . . Recycling Units 3 | . . 1 1 1 . Scanalyzers 3 | . . . 1 2 . Garrison Access . | . . . . . . Total Hacks 44 | . 4 9 13 11 7 Successful 27 | . 3 4 10 7 3 Failed 17 | . 1 5 3 4 4 Catastrophic 2 | . . 1 . . 1 Database Lockouts . | . . . . . . Manual 18 | . . 3 6 2 7 Terminals 23 | . 4 3 9 . 7 Fabricators 2 | . . . . 2 . Repair Stations 5 | . . 5 . . . Recycling Units 6 | . . 1 2 3 . Scanalyzers 8 | . . . 2 6 . Garrison Access . | . . . . . . Terminal Hacks 5 | . 3 . 2 . . Prototype ID Bank 1 | . . . 1 . . Alert Level 1 | . . . 1 . . Unreport Threat 1 | . 1 . . . . Locate Traps 1 | . 1 . . . . Hauler Manifests 1 | . 1 . . . . Fabricator Hacks . | . . . . . . Repair Station Hacks 3 | . . 3 . . . Scan Component 2 | . . 2 . . . Repair 1 | . . 1 . . . Recycling Unit Hacks 4 | . . 1 2 1 . Report Inventory 3 | . . 1 1 1 . Retrieve Components 1 | . . . 1 . . Scanalyzer 7 | . . . 2 5 . Insert Component 3 | . . . 1 2 . Analyze 4 | . . . 1 3 . Garrison Access Hacks . | . . . . . . Unauthorized Hacks 8 | . . . 4 1 3 Terminals 7 | . . . 4 . 3 Botnet 6 | . . . 3 . 3 Disrupt 1 | . . . 1 . . Fabricators . | . . . . . . Repair Stations . | . . . . . . Recycling Units 1 | . . . . 1 . Recyclers 1 | . . . . 1 . Scanalyzers . | . . . . . . Garrison Access . | . . . . . . Data Cores Recovered 1 | . . . 1 . . Used . | . . . . . . Hacking Detections 15 | . 1 4 4 3 3 Full Trace Events 2 | . . 1 . 1 . Feedback Events . | . . . . . . Feedback Blocked . | . . . . . . Robot Schematics Acquired . | . . . . . . Robots Built . | . . . . . . Authchips . | . . . . . . Time . | . . . . . . Total Robot Build Rating . | . . . . . . Part Schematics Acquired 2 | . . . 1 1 . Parts Built . | . . . . . . Authchips . | . . . . . . Time . | . . . . . . Total Part Build Rating . | . . . . . . Parts Repaired 1 | . . 1 . . . Time 26 | . . 26 . . . Parts Recycled . | . . . . . . Recycled Matter . | . . . . . . Retrieved Matter . | . . . . . . Retrieved Components 6 | . . . 6 . . Parts Scanalyzed 3 | . . . 1 2 . Part Schematics Acquired 2 | . . . 1 1 . Parts Damaged . | . . . . . . Bothacking | -11 -10 -9 -8 -7 -6 ------------ Run | Yrd Mat Mat Mat Fac Fac Used RIF Installer . | . . . . . . Robots Hacked . | . . . . . . Non-combat . | . . . . . . Combat . | . . . . . . Robot Hacks Applied . | . . . . . . Relay Couplers Released . | . . . . . . Fabnet Peak Effective % . | . . . . . . Robots Rewired . | . . . . . . Allies Hacked . | . . . . . . Hacks Repelled . | . . . . . . Allies | -11 -10 -9 -8 -7 -6 -------- Run | Yrd Mat Mat Mat Fac Fac Total Allies . | . . . . . . Largest Group . | . . . . . . Highest-Rated Group . | . . . . . . Highest-Rated Ally . | . . . . . . Total Orders . | . . . . . . Ally Attacks . | . . . . . . Total Damage . | . . . . . . Kills . | . . . . . . Allies Corrupted . | . . . . . . Allies Melted . | . . . . . . Intel | -11 -10 -9 -8 -7 -6 ------- Run | Yrd Mat Mat Mat Fac Fac Robot Analysis Total . | . . . . . . Derelict Logs Recovered . | . . . . . . Drone Launches . | . . . . . . Drone Recoveries . | . . . . . . Exploration | -11 -10 -9 -8 -7 -6 ------------- Run | Yrd Mat Mat Mat Fac Fac Turns Passed 4412 | 53 405 701 833 1545 875 Spaces Moved 2842 | 44 297 526 578 966 431 Core 20 | 2 . . . . 18 Treads 726 | . . . 14 404 308 Legs 32 | . . . . . 32 Wheels 2064 | 42 297 526 564 562 73 Hover . | . . . . . . Flight . | . . . . . . Fastest Speed 50 | 50 90 95 95 95 80 Average Speed 119 | 97 96 98 110 130 150 Slowest Speed 350 | 100 100 115 240 240 350 Overloaded Moves . | . . . . . . Propulsion Burnouts . | . . . . . . Robots Hopped . | . . . . . . Cave-ins Triggered . | . . . . . . Exploration Rate (%) 30 | 3 63 48 36 24 8 Regions Visited 5 Branch Regions . Pre-discovered Areas . | . . . . . . Known Exits Taken 3 | . . 1 1 1 . Unknown Exits Taken 2 | 1 1 . . . . Scrap Searched . | . . . . . . Spaces Dug 2 | . . . . . 2 Terrain Destroyed 53 | . 2 3 4 9 35 Melee 2 | . . . . . 2 Projectile 3 | . . . 1 1 1 AOE 48 | . 2 3 3 8 32 Terrain Rammed . | . . . . . . Walls Destroyed . | . . . . . . Machines Disabled . | . . . . . . Actions | -11 -10 -9 -8 -7 -6 --------- Run | Yrd Mat Mat Mat Fac Fac Total 3459 | 50 355 630 708 1162 554 Wait 235 | . 7 30 59 104 35 Move 2837 | 43 296 525 577 965 431 Hop . | . . . . . . Pick Up 26 | 1 4 4 7 8 2 Fast Attach 57 | 6 4 11 14 11 11 Attach 28 | . . 5 4 8 11 Detach 9 | . . 2 3 3 1 Swap 12 | . 3 2 2 4 1 Drop 39 | . 5 9 9 12 4 Fire 194 | . 36 42 33 47 36 Melee 22 | . . . . . 22 Ram . | . . . . . . Kick . | . . . . . . Crush . | . . . . . . Escape Stasis . | . . . . . . Rewire . | . . . . . . Trap . | . . . . . . Miscellaneous . | . . . . . . Route ------- -11/Scrapyard -10/Materials (discovered 3 exits: *Mat / [*Min x2]) -9/Materials (discovered 4 exits: *Mat / *Min / *Sto x2) -8/Materials -7/Factory -6/Factory History --------- Turn | Location | Event 35 | -11/Scrapyard | Discovered new exit (range 13) 54 | -11/Scrapyard | Entered Materials 210 | -10/Materials | Discovered new exit (range 6) 310 | -10/Materials | Core integrity fell below 50% 324 | -10/Materials | Build established: Mutant 384 | -10/Materials | Discovered new exit (range 8) 449 | -10/Materials | Discovered new exit (range 10) 459 | -10/Materials | Entered another Materials area 459 | -9/Materials | Evolved 2 slots: Utility x2 460 | -9/Materials | Discovered new exit (range 8) 486 | -9/Materials | Discovered new exit (range 10) 620 | -9/Materials | Identified exit to Storage 769 | -9/Materials | Discovered new exit (range 11) 787 | -9/Materials | Lost 3 parts (1n2w) 862 | -9/Materials | Identified exit to Mines 936 | -9/Materials | Repaired Med. Storage Unit 1143 | -9/Materials | Discovered new exit (range 13) 1159 | -9/Materials | Identified exit to Materials 1160 | -9/Materials | Entered another Materials area 1160 | -8/Materials | Evolved 2 slots: Utility x2 1361 | -8/Materials | Lost 7 parts (1p1n2u3w) 1602 | -8/Materials | Build established: Scavenger-Mutant 1933 | -8/Materials | Discovered new exit (range 8) 1939 | -8/Materials | Identified exit to Factory 1993 | -8/Materials | Entered Factory 1993 | -7/Factory | Evolved 2 slots: Power x1, Propulsion x1 2509 | -7/Factory | Lost 4 parts (1p2u1w) 2785 | -7/Factory | Build established: Scavenger-Skirmisher 2834 | -7/Factory | Garrison activated, responded to threat 3422 | -7/Factory | Discovered new exit (range 8) 3433 | -7/Factory | Identified exit to Factory 3538 | -7/Factory | Entered another Factory area 3538 | -6/Factory | Evolved 2 slots: Utility x2 3946 | -6/Factory | Build established: Scavenger-Mutant 4072 | -6/Factory | Core integrity fell below 50% 4099 | -6/Factory | Lost 10 parts (3p2n3u2w) 4290 | -6/Factory | Core integrity fell below 20% 4333 | -6/Factory | Build established: Mutant 4413 | -6/Factory | Destroyed by Y-54 Guardian with Flak Gun Last Messages --------------- Destroyed Com. Wheel. U-05 Engineer builds a Wall. U-05 Engineer lays Concrete. M-13 Machinist repairs R-10 Processor. U-05 Engineer builds a Wall. U-05 Engineer lays Concrete. U-05 Engineer builds a Wall. Acquired 7 matter. Sneak attack on U-05 Engineer. U-05 Engineer destroyed. K-01 Serf collects debris. Acquired Terrain Scanner. Acquired 10 matter. Sneak attack on K-01 Serf. K-01 Serf destroyed. R-10 Processor collects Wheel. Acquired Terrain Scan Processor. Acquired 10 matter. SFDWKPBKQ O%BNXND 9UGLR Acquired Wheel. Map ----- +----------------------------------------------------+ | ?????????????????????????????????????????????????? | | ?????????????????????????????????????????????????? | | ?????????????????????????????????????????????????? | | ?????????????????????????????????????????????????? | | ?????????????????????????????????????????????????? | | ?????????????????????????????????????????????????? | | ?????????????????????????????????????????????????? | | ?????????????????????????????????????????????????? | | ?????????????????????????????????????????????????? | | ?????????????????????????????????????????????????? | | ?????????????????????????????????????????????????? | | ?????????????????????????????????????????????????? | | ?????????????????????????????????????????????????? | | ?????????????????????????##??????????????????????? | | ????????????????????????? ??????????????????????? | | ????????????????????????? ??????????????????????? | | ????????????????????????? ??????????????????????? | | ????????????????????????+ ??????????????????????? | | ???????????????????? ???# ? ????????????????????? | | ????????????????????????# ????? ????????????????? | | ???????????????????????? ??????????????????????? | | ?????????????????????#??# #??????????????????????? | | ????????????????????????# #???#????#?????????????? | | ????????????????#???????#u#??????????????????????? | | ????????????????????????# #??#?????#?????????????? | | ????????????? ???? ?????#@#???#??#???????????????? | | ????????????? #????????## #??????????? ??????????? | | ????????????????????????# #########??????????????? | | ????????????????"???????# R ???????? | | ???????????????"??? ????# ##########?????????????? | | ??????????????#?????? ??# #??????????????????????? | | ????????????????????????#%#??????????????????????? | | ??????????????#?? ? ???## #??????????????????????? | | ??????????????? ??????#?#%#######??#?????????????? | | ?????????????????? ?????# # # # ###??? ??????????? | | ?????? ?????+???????###/##########?????????????? | | ?????# ?##+######### Y% #?????????????? | | ?????# ?# ## #?????????????? | | ?????# # ## R ##????????????? | | ?????# # ## R ##????????????? | | ?????# # "# ##?????? ?????? | | ?????# ######"##### ####?#????????? | | ?????# ^ ##?## # #? ??? ? ?? | | ?????# ^ ! #?### ! # #?? ??? ? ?? | | ?????# """ ##### # # ? ? ? | | ?????# """ ##### % # # ?? ??? | | ?????# """ #???# == ###?? ? ??? | | ?????# ##??# = ##?###?#####?## | | ###### """"% ###########+#+########? ??? ? | | """" % % ######### ? ? | +----------------------------------------------------+ Best States ------------- Heat Dissipation 53 Energy Generation 31 Energy Capacity 350 Matter Stores 300 Matter Capacity 300 Sight Range 16 Robot Scan Range 15 Terrain Scan Range 16 Terrain Scan Density 210 Base Temperature (-) 100 Armor Coverage 225 Weapon Shielding 66 Evasion (%) 50 Targeting Accuracy 6 Core Analysis 6 Recoil Reduction 3 Offensive Hacking 10 Item Schematics ----------------- Arm. Wheel | -8/Materials | Scanalyzed Med. Treads | -7/Factory | Scanalyzed Robot Schematics ------------------ None Fabricated ------------ Nothing Alien Tech Used ----------------- None Achievements -------------- None Challenges ------------ None Game ------ Seed CoreChromaticDetector Manual? 0 Play Time 00:51:13 Cumulative 46.7 hours Start 2024.07.29 @ 21:02:33 End 2024.07.29 @ 21:53:19 Sessions 1 Manual Loads 0 Difficulty Rogue Special Mode None Game No. 42 Rogue 42 Adventurer 0 Explorer 0 Win Type - Total 0 Types 0/0/0/0/0/0/0/0/0 Lore% 27 Gallery% 36 Achievement% 27 Wizard Run 0 Options --------- Layout 1 ASCII 0 Keyboard 0 Movement Arrows Keybinds 0 Fullscreen 1 Font 16/Terminus Map View 55x38 Zoom Use 0% Tactical HUD 0 Map Filters NONE Filters NONE Steam 1 RUN: 7f9bc14c-c9de-4020-ac3c-a5e5c9353c1e